Workbook

Sheet MAX Budget
A1: Organization:
A2: Project Title: | B2: MentorAbility 2.0
A3: Start & End Dates: | B3: November 1, 2025 to May 31, 2026
A5: Category Details | B5: Example | C5: Final Budget | D5: Detailed Budget Description & Calculation
A7: 1.A. Administrative Costs
A8: f. Insurance | C8: ='Budget Calculation'!C8 -> 0
D9: Liability Insurance
A11: i. Materials and office supplies | C11: ='Budget Calculation'!C11 -> 0
D12: Office Supplies
A14: m. Postage and courier fees | C14: ='Budget Calculation'!C14 -> 0
D15: Postage and/or Courier
A17: Total Administrative costs | B17: 950 | C17: =SUM(C8:C16) -> 0 | D17: MAXIMUM ADMIN COSTS: $950.00
A19: 3C. Project Costs
A20: a. Advertising | B20: 15000 | C20: ='Budget Calculation'!C20 -> 0
D21: Social Media
D22: Social Media Advertisements
D24: MAX: 15,000
A25: d. Equipment lease or purchase, software, etc | B25: 1500 | C25: ='Budget Calculation'!C27 -> 0
D26: Laptops (note: $999 or less per computer)
D27: Adobe
D28: Zoom - Business
D29: MS Office Business
D30: MailChimp/Simply Cast
D31: Other (please specify)
D33: MAX: 1500
A34: f. GST/HST/PST (automatically calculated) | C34: ='Budget Calculation'!C36 -> 0 | D34: 1A.f. Insurance
D35: 1.A.i. Materials & Supplies
D36: 1.A.m. Postage & Courier
D37: 3.C.a. Advertising
D38: 3.C.d. Equipment lease
D39: 3.C.g. Hospitality
D40: 3.C.j. Professional Fees
D41: 3.C.m. Significant project costs
D42: 3.E.a. Staff Travel
D45: This section will auto-populate
A46: g. Hospitality | B46: 7000 | C46: ='Budget Calculation'!C48 -> 0
D47: Service Provider and Jobseker Engagement
D48: Employer Engagement
D49: Employer Lunch & Learns
D50: Other (please specify)
D53: MAX: $7,000
A54: j. Professional fees related to project activities | B54: 96000 | C54: ='Budget Calculation'!C56 -> 0
D55: Project Coordinator (FT)
D56: Facilitator (FT)
D57: Financial Coordinator(max 1 day per week)
D59: MAX: $96,000
D60: NOTE: The RRSP and health plan rate formula will need to be adjusted based on your organizational policies and/or costs.
A61: m. Significant project costs for: contracting, internet & other IT, postage, printing, Staff PD & telephone | B61: =500+2000 -> 2500 | C61: ='Budget Calculation'!C63 -> 0
D62: EN/FR/Other Translation
D63: Plain Language
D64: ASL/LSQ Interpreters
D65: MAX: $500
D67: Provincial
D68: Staff Cell
D69: Internet
D71: MAX: $2000
A73: Total Project Costs | B73: =SUM(B20:B72) -> 122000 | C73: =SUM(C20:C72) -> 0
A75: 3E. Travel
A76: a. Staff, consultant, volunteer travel as per expense claims, international travel where warranted | B76: 8000 | C76: ='Budget Calculation'!C79 -> 0
D77: Mileage
D78: Flights
D79: Hotel
D80: Meals & Incidentals
D81: MAX: $8,000
D82: NOTE: Mileage, meals, and incidentals must not exceed the allowable amount outlined by the National Joint Council. These rates will change from time to time and should be verified for the time period of travel before being submitted.
D84: https://www.njc-cnm.gc.ca/s3/en
A85: Total Travel | B85: =+B76 -> 8000 | C85: 0
A87: Total Costs | B87: =+B85+B73+B17 -> 130950 | C87: =+C85+C73+C17 -> 0

Sheet Budget Calculation
E1: For MB the amount of tax that can be claimed is 50% for GST and 100% for PST. Please note that the formula has been adjusted accordingly in column "I". Tax to be claimed will be calculated and populated automatically (cost category 3C.f).
A2: Project Title: | B2: MentorAbility 2.0
A3: Start & End Dates: | B3: November 1, 2025 to May 31, 2026
A5: Category Details | B5: Budget Requested | C5: Total | D5: 50% GST/HST | E5: Detailed Budget Description & Calculation
B6: 01.11.2025-31.05.2026
A7: 1.A. Administrative Costs
A8: f. Insurance | B8: =H9 -> 0 | C8: =SUM(B8:B10) -> 0 | D8: =+I9 -> 0 | F8: $/Mo | G8: # Mos | H8: Sub | I8: 50% GST/HST | J8: Total
E9: Liability Insurance | H9: =+F9*G9 -> 0 | I9: =+H9*0.095 -> 0 | J9: =+H9+I9 -> 0
A11: i. Materials and office supplies | B11: =H12 -> 0 | C11: =SUM(B11:B13) -> 0 | D11: =+I12 -> 0 | F11: $/Mo | G11: # Mos | H11: Sub | I11: 50% GST/HST | J11: Total
E12: Office Supplies | H12: =+F12*G12 -> 0 | I12: =+H12*0.095 -> 0 | J12: =+H12+I12 -> 0
A14: m. Postage and courier fees | B14: =H15 -> 0 | C14: =SUM(B14:B16) -> 0 | D14: =+I15 -> 0 | F14: $/Mo | G14: # Mos | H14: Sub | I14: 50% GST/HST | J14: Total
E15: Postage and/or Courier | H15: =+F15*G15 -> 0 | I15: =+H15*0.095 -> 0 | J15: =+H15+I15 -> 0
A17: Total Administrative costs | B17: =SUM(B8:B16) -> 0 | C17: =SUM(C8:C16) -> 0 | D17: =SUM(D8:D16) -> 0
A19: 3C. Project Costs
A20: a. Advertising | B20: =H25 -> 0 | C20: =SUM(B20:B26) -> 0 | D20: =+I25 -> 0 | F20: $/Mo | G20: # Mos | H20: Sub | I20: 50% GST/HST | J20: Total
E21: Social Media | H21: =+F21*G21 -> 0 | I21: =+H21*0.095 -> 0 | J21: =+H21+I21 -> 0
E22: DEAM Events | H22: =+F22*G22 -> 0 | I22: =+H22*0.095 -> 0 | J22: 0
E23: Social Media Advertisements | H23: =+F23*G23 -> 0 | I23: =+H23*0.095 -> 0 | J23: 0
E24: DEAM Social Media Campaigns | H24: =+F24*G24 -> 0 | I24: =+H24*0.095 -> 0 | J24: 0
H25: =SUM(H21:H24) -> 0 | I25: =SUM(I21:I24) -> 0 | J25: =SUM(J21:J24) -> 0
A27: d. Equipment lease or purchase, software, etc | B27: =H34 -> 0 | C27: =SUM(B27:B35) -> 0 | D27: =+I34 -> 0 | F27: $/Mo/License | G27: # Mos/Purchase | H27: Sub | I27: 50% GST/HST | J27: Total
E28: Laptops | H28: =+F28*G28 -> 0 | I28: =+H28*0.095 -> 0 | J28: =+H28+I28 -> 0
E29: Adobe | H29: =+F29*G29 -> 0 | I29: 0 | J29: 0
E30: Zoom - Business | H30: 0 | I30: 0 | J30: 0
E31: MS Office Business | H31: 0 | I31: 0 | J31: 0
E32: MailChimp/Simply Cast | H32: 0 | I32: 0 | J32: 0
E33: Other (please specify) | H33: 0 | I33: 0 | J33: 0
H34: =SUM(H28:H33) -> 0 | I34: =SUM(I28:I33) -> 0 | J34: =SUM(J28:J33) -> 0
A36: f. GST/HST | B36: =F45 -> 0 | C36: =+F45 -> 0 | E36: 1A.f. Insurance | F36: =+D8 -> 0
E37: 1.A.i. Materials & Supplies | F37: =+D11 -> 0
E38: 1.A.m. Postage & Courier | F38: =+D14 -> 0
E39: 3.C.a. Advertising | F39: =+D20 -> 0
E40: 3.C.d. Equipment lease | F40: =+D27 -> 0
E41: 3.C.g. Hospitality | F41: =+D48 -> 0
E42: 3.C.j. Professional Fees | F42: =+D56 -> 0
E43: 3.C.m. Significant project costs | F43: =+D63 -> 0
E44: 3.E.a. Staff Travel | F44: =+D79 -> 0
F45: =SUM(F36:F44) -> 0
E47: These will auto-populate if using the form correctly.
A48: g. Hospitality | B48: =I53 -> 0 | C48: =SUM(B48:B55) -> 0 | D48: =+J53 -> 0 | F48: $/Event | G48: # Events/Yr | H48: # Yrs | I48: Sub | J48: 50% HST | K48: Total
E49: Service Provider and Jobseeker Engagement | I49: =+F49*G49*H49 -> 0 | J49: =+I49*0.095 -> 0 | K49: =+I49+J49 -> 0
E50: Employer Engagement | I50: =+F50*G50*H50 -> 0 | J50: =+I50*0.095 -> 0 | K50: =+I50+J50 -> 0
E51: Employer Lunch & Learns | I51: 0 | J51: =+I51*0.095 -> 0 | K51: 0
E52: Other (please specify) | I52: 0 | J52: =+I52*0.095 -> 0 | K52: 0
I53: =SUM(I49:I52) -> 0 | J53: =SUM(J49:J52) -> 0 | K53: =SUM(K49:K52) -> 0
A56: j. Professional fees related to project activities | B56: =N60 -> 0 | C56: =SUM(B56:B62) -> 0 | D56: 0 | F56: Rate/Hr | G56: # Hrs/Wk | H56: # Wks | I56: Sub | J56: EI@2.28% | K56: CPP@5.95% | L56: RRSP @ ??% | M56: Health @ $??/mo | N56: Total
E57: Project Coordinator | I57: =+F57*G57*H57 -> 0 | J57: =+I57*0.0228 -> 0 | K57: =+I57*0.0595 -> 0 | N57: =SUM(I57:M57) -> 0
E58: Facilitator | I58: =+F58*G58*H58 -> 0 | J58: =+I58*0.0228 -> 0 | K58: =+I58*0.0595 -> 0 | N58: =SUM(I58:M58) -> 0
E59: Financial Coordinator | I59: 0 | J59: 0 | K59: 0 | N59: 0
I60: =SUM(I57:I59) -> 0 | J60: 0 | K60: 0 | L60: 0 | M60: 0 | N60: 0
E62: NOTE: The RRSP and health plan rate formula will need to be adjusted based on your organizational policies and/or costs.
A63: m. Significant project costs for: contracting, internet & other IT, postage, printing, Staff PD & telephone | B63: =J74 -> 0 | C63: =SUM(B63:B75) -> 0 | D63: =+J67 -> 0 | F63: $/Event | G63: # Events/Yr | H63: # Yrs | I63: Sub | J63: 50% GST/HST | K63: Total
E64: EN/FR/Other Translation | I64: =+F64*G64*H64 -> 0 | J64: =+I64*0.095 -> 0 | K64: =+I64+J64 -> 0
E65: Plain Language | I65: =+F65*G65*H65 -> 0 | J65: =+I65*0.095 -> 0 | K65: =+I65+J65 -> 0
E66: ASL/LSQ Interpreters | I66: =+F66*G66*H66 -> 0 | J66: =+I66*0.095 -> 0 | K66: 0
I67: =SUM(I64:I66) -> 0 | J67: =SUM(J64:J66) -> 0 | K67: =SUM(K64:K66) -> 0
E69: Provincial | F69: $/Mo | G69: # Staff (if app) | H69: Sub | I69: # Mos | J69: Total
E70: Staff Cell | H70: =+F70*G70 -> 0 | J70: =+H70*I70 -> 0
E71: Internet | H71: =+F71*G71 -> 0 | J71: =+H71*I71 -> 0
H72: =SUM(H70:H71) -> 0 | J72: =+J70+J71 -> 0
I74: Total Project: | J74: =+I67+H72 -> 0
A76: Total Project Costs | B76: =SUM(B20:B75) -> 0 | C76: =SUM(C20:C75) -> 0 | D76: =SUM(D20:D75) -> 0
A78: 3E. Travel
A79: a. Staff, consultant, volunteer travel as per expense claims, international travel where warranted | B79: =J84 -> 0 | C79: =SUM(B79:B86) -> 0 | D79: =+K84 -> 0 | F79: Rate/Km | G79: # Nights/Kms | H79: # Trips/Yr | I79: # Yrs | J79: Sub | K79: 50% GST/HST | L79: Total
E80: Mileage | I80: 1 | J80: =+G80*H80*I80*F80 -> 0 | K80: =+J80*0.095 -> 0 | L80: =+J80+K80 -> 0
E81: Flights | I81: 1 | J81: =+G81*H81*I81*F81 -> 0 | K81: =+J81*0.095 -> 0 | L81: =+J81+K81 -> 0
E82: Hotel | I82: 1 | J82: 0 | K82: =+J82*0.095 -> 0 | L82: =+J82+K82 -> 0
E83: Meals & Incidentals | I83: 1 | J83: 0 | K83: =+J83*0.095 -> 0 | L83: 0
J84: =SUM(J80:J83) -> 0 | K84: =SUM(K80:K83) -> 0 | L84: =SUM(L80:L83) -> 0
E85: NOTE: Mileage, meals, and incidentals must not exceed the allowable amount outlined by the National Joint Council. These rates will change from time to time and should be verified for the time period of travel before being submitted.
E86: https://www.njc-cnm.gc.ca/s3/en
A87: Total Travel | B87: =+B79 -> 0 | C87: 0 | D87: 0
A89: Total Costs | B89: =+B87+B76+B17 -> 0 | C89: =+C87+C76+C17 -> 0 | D89: =+D87+D76+D17 -> 0

Sheet In-Kind Contribution
A2: Project Title: | B2: MentorAbility 2.0
A3: Start & End Dates: | B3: November 1, 2025 to May 31, 2026
A5: Category Details | B5: Budget Requested | C5: Total | D5: 50% GST/HST | E5: Detailed Budget Description & Calculation
B6: 01.11.2025-31.05.2026
A7: 1.A. Administrative Costs
A8: f. Insurance | B8: =J9 -> 0 | C8: =SUM(B8:B10) -> 0 | D8: =+I9 -> 0 | F8: $/Mo | G8: # Mos | H8: Sub | I8: 50% GST/HST | J8: Total
E9: Liability Insurance | H9: =+F9*G9 -> 0 | I9: =+H9*0.095 -> 0 | J9: =+H9+I9 -> 0
A11: i. Materials and office supplies | B11: =J12 -> 0 | C11: =SUM(B11:B13) -> 0 | D11: =+I12 -> 0 | F11: $/Mo | G11: # Mos | H11: Sub | I11: 50% GST/HST | J11: Total
E12: Office Supplies | H12: =+F12*G12 -> 0 | I12: =+H12*0.095 -> 0 | J12: =+H12+I12 -> 0
A14: m. Postage and courier fees | B14: =J15 -> 0 | C14: =SUM(B14:B16) -> 0 | D14: =+I15 -> 0 | F14: $/Mo | G14: # Mos | H14: Sub | I14: 50% GST/HST | J14: Total
E15: Postage and/or Courier | H15: =+F15*G15 -> 0 | I15: =+H15*0.095 -> 0 | J15: =+H15+I15 -> 0
A17: Total Administrative costs | B17: =SUM(B8:B16) -> 0 | C17: =SUM(C8:C16) -> 0 | D17: =SUM(D8:D16) -> 0
A19: 3C. Project Costs
A20: a. Advertising | B20: =J25 -> 0 | C20: =SUM(B20:B26) -> 0 | D20: =+I25 -> 0 | F20: $/Mo | G20: # Mos | H20: Sub | I20: 50% GST/HST | J20: Total
E21: Social Media | H21: =+F21*G21 -> 0 | I21: =+H21*0.095 -> 0 | J21: =+H21+I21 -> 0
E22: DEAM Events | H22: =+F22*G22 -> 0 | I22: =+H22*0.095 -> 0 | J22: 0
E23: Social Media Advertisements | H23: =+F23*G23 -> 0 | I23: =+H23*0.095 -> 0 | J23: 0
E24: DEAM Social Media Campaigns | H24: =+F24*G24 -> 0 | I24: =+H24*0.095 -> 0 | J24: 0
H25: =SUM(H21:H24) -> 0 | I25: =SUM(I21:I24) -> 0 | J25: =SUM(J21:J24) -> 0
A27: d. Equipment lease or purchase, software, etc | B27: =J34 -> 0 | C27: =SUM(B27:B35) -> 0 | D27: =+I34 -> 0 | F27: $/Mo/License | G27: # Mos/Purchase | H27: Sub | I27: 50% GST/HST | J27: Total
E28: Laptops | H28: =+F28*G28 -> 0 | I28: =+H28*0.095 -> 0 | J28: =+H28+I28 -> 0
E29: Adobe | H29: =+F29*G29 -> 0 | I29: 0 | J29: 0
E30: Zoom - Business | H30: 0 | I30: 0 | J30: 0
E31: MS Office Business | H31: 0 | I31: 0 | J31: 0
E32: MailChimp/Simply Cast | H32: 0 | I32: 0 | J32: 0
E33: Other (please specify) | H33: 0 | I33: 0 | J33: 0
H34: =SUM(H28:H33) -> 0 | I34: =SUM(I28:I33) -> 0 | J34: =SUM(J28:J33) -> 0
A36: f. GST/HST | B36: =F45 -> 0 | C36: =+F45 -> 0 | E36: 1A.f. Insurance | F36: =+D8 -> 0
E37: 1.A.i. Materials & Supplies | F37: =+D11 -> 0
E38: 1.A.m. Postage & Courier | F38: =+D14 -> 0
E39: 3.C.a. Advertising | F39: =+D20 -> 0
E40: 3.C.d. Equipment lease | F40: =+D27 -> 0
E41: 3.C.g. Hospitality | F41: =+D48 -> 0
E42: 3.C.j. Professional Fees | F42: =+D56 -> 0
E43: 3.C.m. Significant project costs | F43: =+D63 -> 0
E44: 3.E.a. Staff Travel | F44: =+D79 -> 0
F45: =SUM(F36:F44) -> 0
E47: These will auto-populate if using the form correctly.
A48: g. Hospitality | B48: =K53 -> 0 | C48: =SUM(B48:B55) -> 0 | D48: =+J53 -> 0 | F48: $/Event | G48: # Events/Yr | H48: # Yrs | I48: Sub | J48: 50% HST | K48: Total
E49: Service Provider and Jobseeker Engagement | I49: =+F49*G49*H49 -> 0 | J49: =+I49*0.095 -> 0 | K49: =+I49+J49 -> 0
E50: Employer Engagement | I50: =+F50*G50*H50 -> 0 | J50: =+I50*0.095 -> 0 | K50: =+I50+J50 -> 0
E51: Employer Lunch & Learns | I51: 0 | J51: =+I51*0.095 -> 0 | K51: 0
E52: Other (please specify) | I52: 0 | J52: =+I52*0.095 -> 0 | K52: 0
I53: =SUM(I49:I52) -> 0 | J53: =SUM(J49:J52) -> 0 | K53: =SUM(K49:K52) -> 0
A56: j. Professional fees related to project activities | B56: =N60 -> 0 | C56: =SUM(B56:B62) -> 0 | D56: 0 | F56: Rate/Hr | G56: # Hrs/Wk | H56: # Wks | I56: Sub | J56: EI@2.28% | K56: CPP@5.95% | L56: RRSP @ ??% | M56: Health @ $??/mo | N56: Total
E57: Project Coordinator | I57: =+F57*G57*H57 -> 0 | J57: =+I57*0.0228 -> 0 | K57: =+I57*0.0595 -> 0 | N57: =SUM(I57:M57) -> 0
E58: Facilitator | I58: =+F58*G58*H58 -> 0 | J58: =+I58*0.0228 -> 0 | K58: =+I58*0.0595 -> 0 | N58: =SUM(I58:M58) -> 0
E59: Financial Coordinator | I59: 0 | J59: 0 | K59: 0 | N59: 0
I60: =SUM(I57:I59) -> 0 | J60: 0 | K60: 0 | L60: 0 | M60: 0 | N60: 0
E62: NOTE: The RRSP and health plan rate formula will need to be adjusted based on your organizational policies and/or costs.
A63: m. Significant project costs for: contracting, internet & other IT, postage, printing, Staff PD & telephone | B63: =J74 -> 0 | C63: =SUM(B63:B75) -> 0 | D63: =+J67 -> 0 | F63: $/Event | G63: # Events/Yr | H63: # Yrs | I63: Sub | J63: 50% GST/HST | K63: Total
E64: EN/FR/Other Translation | I64: =+F64*G64*H64 -> 0 | J64: =+I64*0.095 -> 0 | K64: =+I64+J64 -> 0
E65: Plain Language | I65: =+F65*G65*H65 -> 0 | J65: =+I65*0.095 -> 0 | K65: =+I65+J65 -> 0
E66: ASL/LSQ Interpreters | I66: =+F66*G66*H66 -> 0 | J66: =+I66*0.095 -> 0 | K66: 0
I67: =SUM(I64:I66) -> 0 | J67: =SUM(J64:J66) -> 0 | K67: =SUM(K64:K66) -> 0
E69: Provincial | F69: $/Mo | G69: # Staff (if app) | H69: Sub | I69: # Mos | J69: Total
E70: Staff Cell | H70: =+F70*G70 -> 0 | J70: =+H70*I70 -> 0
E71: Internet | H71: =+F71*G71 -> 0 | J71: =+H71*I71 -> 0
J72: =+J70+J71 -> 0
I74: Total Project: | J74: =+I67+J72 -> 0
A76: Total Project Costs | B76: =SUM(B20:B75) -> 0 | C76: =SUM(C20:C75) -> 0 | D76: =SUM(D20:D75) -> 0
A78: 3E. Travel
A79: a. Staff, consultant, volunteer travel as per expense claims, international travel where warranted | B79: =L84 -> 0 | C79: =SUM(B79:B86) -> 0 | D79: =+K84 -> 0 | F79: Rate/Km | G79: # Nights/Kms | H79: # Trips/Yr | I79: # Yrs | J79: Sub | K79: 50% GST/HST | L79: Total
E80: Mileage | I80: 1 | J80: =+G80*H80*I80*F80 -> 0 | K80: =+J80*0.095 -> 0 | L80: =+J80+K80 -> 0
E81: Flights | I81: 1 | J81: =+G81*H81*I81*F81 -> 0 | K81: =+J81*0.095 -> 0 | L81: =+J81+K81 -> 0
E82: Hotel | I82: 1 | J82: 0 | K82: =+J82*0.095 -> 0 | L82: =+J82+K82 -> 0
E83: Meals & Incidentals | I83: 1 | J83: 0 | K83: =+J83*0.095 -> 0 | L83: 0
J84: =SUM(J80:J83) -> 0 | K84: =SUM(K80:K83) -> 0 | L84: =SUM(L80:L83) -> 0
E85: NOTE: Mileage, meals, and incidentals must not exceed the allowable amount outlined by the National Joint Council. These rates will change from time to time and should be verified for the time period of travel before being submitted.
E86: https://www.njc-cnm.gc.ca/s3/en
A87: Total Travel | B87: =+B79 -> 0 | C87: 0 | D87: 0
A89: Total Costs | B89: =+B87+B76+B17 -> 0 | C89: =+C87+C76+C17 -> 0 | D89: =+D87+D76+D17 -> 0

Sheet Budget Calculation Example
E1: For MB the amount of tax that can be claimed is 50% for GST and 100% for PST. Please note that the formula has been adjusted accordingly in column "I". Tax to be claimed will be calculated and populated automatically (cost category 3C.f).
A2: Project Title: | B2: MentorAbility 2.0
A3: Start & End Dates: | B3: November 1, 2025 to May 31, 2026
A5: Category Details | B5: Budget Requested | C5: Total | D5: 50% GST/HST | E5: Detailed Budget Description & Calculation
B6: 01.11.2025-31.05.2026
A7: 1.A. Administrative Costs
A8: f. Insurance | B8: =H9 -> 175 | C8: =SUM(B8:B10) -> 175 | D8: =+I9 -> 16.625 | F8: $/Mo | G8: # Mos | H8: Sub | I8: 50% GST/HST | J8: Total
E9: Liability Insurance | F9: 25 | G9: 7 | H9: =+F9*G9 -> 175 | I9: =+H9*0.095 -> 16.625 | J9: =+H9+I9 -> 191.625
A11: i. Materials and office supplies | B11: =H12 -> 175 | C11: =SUM(B11:B13) -> 175 | D11: =+I12 -> 16.625 | F11: $/Mo | G11: # Mos | H11: Sub | I11: 50% GST/HST | J11: Total
E12: Office Supplies | F12: 25 | G12: 7 | H12: =+F12*G12 -> 175 | I12: =+H12*0.095 -> 16.625 | J12: =+H12+I12 -> 191.625
A14: m. Postage and courier fees | B14: =H15 -> 175 | C14: =SUM(B14:B16) -> 175 | D14: =+I15 -> 16.625 | F14: $/Mo | G14: # Mos | H14: Sub | I14: 50% GST/HST | J14: Total
E15: Postage and/or Courier | F15: 25 | G15: 7 | H15: =+F15*G15 -> 175 | I15: =+H15*0.095 -> 16.625 | J15: =+H15+I15 -> 191.625
A17: Total Administrative costs | B17: =SUM(B8:B16) -> 525 | C17: =SUM(C8:C16) -> 525 | D17: =SUM(D8:D16) -> 49.875
A19: 3C. Project Costs
A20: a. Advertising | B20: =H25 -> 14000 | C20: =SUM(B20:B26) -> 14000 | D20: =+I25 -> 1330 | F20: $/Mo | G20: # Mos | H20: Sub | I20: 50% GST/HST | J20: Total
E21: Social Media | F21: 500 | G21: 7 | H21: =+F21*G21 -> 3500 | I21: =+H21*0.095 -> 332.5 | J21: =+H21+I21 -> 3832.5
E22: DEAM Events | F22: 500 | G22: 7 | H22: =+F22*G22 -> 3500 | I22: =+H22*0.095 -> 332.5 | J22: 3832.5
E23: Social Media Advertisements | F23: 500 | G23: 7 | H23: =+F23*G23 -> 3500 | I23: =+H23*0.095 -> 332.5 | J23: 3832.5
E24: DEAM Social Media Campaigns | F24: 500 | G24: 7 | H24: =+F24*G24 -> 3500 | I24: =+H24*0.095 -> 332.5 | J24: 3832.5
H25: =SUM(H21:H24) -> 14000 | I25: =SUM(I21:I24) -> 1330 | J25: =SUM(J21:J24) -> 15330
A27: d. Equipment lease or purchase, software, etc | B27: =H34 -> 1500 | C27: =SUM(B27:B35) -> 1500 | D27: =+I34 -> 142.5 | F27: $/Mo/License | G27: # Mos/Purchase | H27: Sub | I27: 50% GST/HST | J27: Total
E28: Laptops | F28: 800 | G28: 1 | H28: =+F28*G28 -> 800 | I28: =+H28*0.095 -> 76 | J28: =+H28+I28 -> 876
E29: Adobe | F29: 25 | G29: 7 | H29: =+F29*G29 -> 175 | I29: 16.625 | J29: 191.625
E30: Zoom - Business | F30: 25 | G30: 7 | H30: 175 | I30: 16.625 | J30: 191.625
E31: MS Office Business | F31: 25 | G31: 7 | H31: 175 | I31: 16.625 | J31: 191.625
E32: MailChimp/Simply Cast | F32: 25 | G32: 7 | H32: 175 | I32: 16.625 | J32: 191.625
E33: Other (please specify) | H33: 0 | I33: 0 | J33: 0
H34: =SUM(H28:H33) -> 1500 | I34: =SUM(I28:I33) -> 142.5 | J34: =SUM(J28:J33) -> 1642.5
A36: f. GST/HST | B36: =F45 -> 3013.875 | C36: =+F45 -> 3013.875 | E36: 1A.f. Insurance | F36: =+D8 -> 16.625
E37: 1.A.i. Materials & Supplies | F37: =+D11 -> 16.625
E38: 1.A.m. Postage & Courier | F38: =+D14 -> 16.625
E39: 3.C.a. Advertising | F39: =+D20 -> 1330
E40: 3.C.d. Equipment lease | F40: =+D27 -> 142.5
E41: 3.C.g. Hospitality | F41: =+D48 -> 665
E42: 3.C.j. Professional Fees | F42: =+D56 -> 0
E43: 3.C.m. Significant project costs | F43: =+D63 -> 142.5
E44: 3.E.a. Staff Travel | F44: =+D79 -> 684
F45: =SUM(F36:F44) -> 3013.875
E47: These will auto-populate if using the form correctly.
A48: g. Hospitality | B48: =I53 -> 7000 | C48: =SUM(B48:B55) -> 7000 | D48: =+J53 -> 665 | F48: $/Event | G48: # Events/Yr | H48: # Yrs | I48: Sub | J48: 50% HST | K48: Total
E49: Service Provider and Jobseeker Engagement | F49: 900 | G49: 2 | H49: 1 | I49: =+F49*G49*H49 -> 1800 | J49: =+I49*0.095 -> 171 | K49: =+I49+J49 -> 1971
E50: Employer Engagement | F50: 900 | G50: 2 | H50: 1 | I50: =+F50*G50*H50 -> 1800 | J50: =+I50*0.095 -> 171 | K50: =+I50+J50 -> 1971
E51: Employer Lunch & Learns | F51: 900 | G51: 2 | H51: 1 | I51: 1800 | J51: =+I51*0.095 -> 171 | K51: 1971
E52: Other (please specify) | F52: 800 | G52: 2 | H52: 1 | I52: 1600 | J52: =+I52*0.095 -> 152 | K52: 1752
I53: =SUM(I49:I52) -> 7000 | J53: =SUM(J49:J52) -> 665 | K53: =SUM(K49:K52) -> 7665
A56: j. Professional fees related to project activities | B56: =N60 -> 85718.16 | C56: =SUM(B56:B62) -> 85718.16 | D56: 0 | F56: Rate/Hr | G56: # Hrs/Wk | H56: # Wks | I56: Sub | J56: EI@2.28% | K56: CPP@5.95% | L56: RRSP @ ??% | M56: Health @ $??/mo | N56: Total
E57: Project Coordinator | F57: 34 | G57: 40 | H57: 30 | I57: =+F57*G57*H57 -> 40800 | J57: =+I57*0.0228 -> 930.24 | K57: =+I57*0.0595 -> 2427.6 | N57: =SUM(I57:M57) -> 44157.84
E58: Facilitator | F58: 32 | G58: 20 | H58: 30 | I58: =+F58*G58*H58 -> 19200 | J58: =+I58*0.0228 -> 437.76 | K58: =+I58*0.0595 -> 1142.4 | N58: =SUM(I58:M58) -> 20780.16
E59: Financial Coordinator | F59: 32 | G59: 20 | H59: 30 | I59: 19200 | J59: 437.76 | K59: 1142.4 | N59: 20780.16
I60: =SUM(I57:I59) -> 79200 | J60: 1805.76 | K60: 4712.4 | L60: 0 | M60: 0 | N60: 85718.16
E62: NOTE: The RRSP and health plan rate formula will need to be adjusted based on your organizational policies and/or costs.
A63: m. Significant project costs for: contracting, internet & other IT, postage, printing, Staff PD & telephone | B63: =J74 -> 2340 | C63: =SUM(B63:B75) -> 2340 | D63: =+J67 -> 142.5 | F63: $/Event | G63: # Events/Yr | H63: # Yrs | I63: Sub | J63: 50% GST/HST | K63: Total
E64: EN/FR/Other Translation | F64: 500 | G64: 1 | H64: 1 | I64: =+F64*G64*H64 -> 500 | J64: =+I64*0.095 -> 47.5 | K64: =+I64+J64 -> 547.5
E65: Plain Language | F65: 500 | G65: 1 | H65: 1 | I65: =+F65*G65*H65 -> 500 | J65: =+I65*0.095 -> 47.5 | K65: =+I65+J65 -> 547.5
E66: ASL/LSQ Interpreters | F66: 500 | G66: 1 | H66: 1 | I66: =+F66*G66*H66 -> 500 | J66: =+I66*0.095 -> 47.5 | K66: 547.5
I67: =SUM(I64:I66) -> 1500 | J67: =SUM(J64:J66) -> 142.5 | K67: =SUM(K64:K66) -> 1642.5
E69: Provincial | F69: $/Mo | G69: # Staff (if app) | H69: Sub | I69: # Mos | J69: Total
E70: Staff Cell | F70: 60 | G70: 1 | H70: =+F70*G70 -> 60 | I70: 7 | J70: =+H70*I70 -> 420
E71: Internet | F71: 60 | G71: 1 | H71: =+F71*G71 -> 60 | I71: 7 | J71: =+H71*I71 -> 420
J72: =+J70+J71 -> 840
I74: Total Project: | J74: =+I67+J72 -> 2340
A76: Total Project Costs | B76: =SUM(B20:B75) -> 113572.035 | C76: =SUM(C20:C75) -> 113572.035 | D76: =SUM(D20:D75) -> 2280
A78: 3E. Travel
A79: a. Staff, consultant, volunteer travel as per expense claims, international travel where warranted | B79: =J84 -> 7200 | C79: =SUM(B79:B86) -> 7200 | D79: =+K84 -> 684 | F79: Rate/Km | G79: # Nights/Kms | H79: # Trips/Yr | I79: # Yrs | J79: Sub | K79: 50% GST/HST | L79: Total
E80: Mileage | F80: 20 | G80: 50 | H80: 1 | I80: 1 | J80: =+G80*H80*I80*F80 -> 1000 | K80: =+J80*0.095 -> 95 | L80: =+J80+K80 -> 1095
E81: Flights | F81: 1000 | G81: 2 | H81: 2 | I81: 1 | J81: =+G81*H81*I81*F81 -> 4000 | K81: =+J81*0.095 -> 380 | L81: =+J81+K81 -> 4380
E82: Hotel | F82: 400 | G82: 2 | H82: 2 | I82: 1 | J82: 1600 | K82: =+J82*0.095 -> 152 | L82: =+J82+K82 -> 1752
E83: Meals & Incidentals | F83: 150 | G83: 2 | H83: 2 | I83: 1 | J83: 600 | K83: =+J83*0.095 -> 57 | L83: 657
J84: =SUM(J80:J83) -> 7200 | K84: =SUM(K80:K83) -> 684 | L84: =SUM(L80:L83) -> 7884
E85: NOTE: Mileage, meals, and incidentals must not exceed the allowable amount outlined by the National Joint Council. These rates will change from time to time and should be verified for the time period of travel before being submitted.
E86: https://www.njc-cnm.gc.ca/s3/en
A87: Total Travel | B87: =+B79 -> 7200 | C87: 7200 | D87: 684
A89: Total Costs | B89: =+B87+B76+B17 -> 121297.035 | C89: =+C87+C76+C17 -> 121297.035 | D89: =+D87+D76+D17 -> 3013.875
